Workbook

Sheet Sheet1
A1: Clutch Size | B1: 1.06 | D1: Starting Population Size | E1: 700
A2: Bullets | B2: 20 | D2: Ending Population Size | E2: =IF(E17<0,0,E17) -> 617.9191476
A3: Chance of Flu | B3: 0.25 | D3: Number of Flu Epidemics | E3: =SUM(C8:C17) -> 1
A4: Flu Mortality | B4: 0.35
A6: Year | B6: Random | C6: Flu? | D6: Flu Deaths | E6: Rocs | G6: Trial | H6: Rocs 2000 | I6: # Epidemics | K6: Bins | L6: Frequency | M6: Proportion
A7: 1000 | E7: =E1 -> 700 | G7: 1 | H7: 301.5650629 | I7: 2 | K7: 100 | L7: =FREQUENCY(H7:H1006,K7:K20) -> 189 | M7: =L7/1000 -> 0.189
A8: 1100 | B8: =RAND() -> 0.3118574218 | C8: =IF(B8<ChanceOfFlu,1,0) -> 0 | D8: =E7*C8*Flu_Mortality -> 0 | E8: =(E7-Bullets-D8)*ClutchSize -> 720.8 | G8: 2 | H8: 331.3876875 | I8: 2 | K8: 200 | L8: 239 | M8: =L8/1000 -> 0.239
A9: 1200 | B9: 0.4328721352 | C9: =IF(B9<ChanceOfFlu,1,0) -> 0 | D9: =E8*C9*Flu_Mortality -> 0 | E9: =(E8-Bullets-D9)*ClutchSize -> 742.848 | G9: 3 | H9: 71.28585546 | I9: 4 | K9: 300 | L9: 124 | M9: 0.124
A10: 1300 | B10: 0.5779763989 | C10: =IF(B10<ChanceOfFlu,1,0) -> 0 | D10: =E9*C10*Flu_Mortality -> 0 | E10: =(E9-Bullets-D10)*ClutchSize -> 766.21888 | G10: 4 | H10: 154.1900611 | I10: 3 | K10: 400 | L10: 228 | M10: 0.228
A11: 1400 | B11: 0.2864820033 | C11: =IF(B11<ChanceOfFlu,1,0) -> 0 | D11: =E10*C11*Flu_Mortality -> 0 | E11: =(E10-Bullets-D11)*ClutchSize -> 790.9920128 | G11: 5 | H11: 165.4025238 | I11: 3 | K11: 500 | L11: 0 | M11: 0
A12: 1500 | B12: 0.376831204 | C12: =IF(B12<ChanceOfFlu,1,0) -> 0 | D12: =E11*C12*Flu_Mortality -> 0 | E12: =(E11-Bullets-D12)*ClutchSize -> 817.2515336 | G12: 6 | H12: 332.537897 | I12: 2 | K12: 600 | L12: 97 | M12: 0.097
A13: 1600 | B13: 0.6873298784 | C13: =IF(B13<ChanceOfFlu,1,0) -> 0 | D13: =E12*C13*Flu_Mortality -> 0 | E13: =(E12-Bullets-D13)*ClutchSize -> 845.0866256 | G13: 7 | H13: 600.7446969 | I13: 1 | K13: 700 | L13: 70 | M13: 0.07
A14: 1700 | B14: 0.447176853 | C14: =IF(B14<ChanceOfFlu,1,0) -> 0 | D14: =E13*C14*Flu_Mortality -> 0 | E14: =(E13-Bullets-D14)*ClutchSize -> 874.5918231 | G14: 8 | H14: 394.227446 | I14: 2 | K14: 800 | L14: 0 | M14: 0
A15: 1800 | B15: 0.3915251294 | C15: =IF(B15<ChanceOfFlu,1,0) -> 0 | D15: =E14*C15*Flu_Mortality -> 0 | E15: =(E14-Bullets-D15)*ClutchSize -> 905.8673325 | G15: 9 | H15: 4.369164969 | I15: 5 | K15: 900 | L15: 0 | M15: 0
A16: 1900 | B16: 0.1389837866 | C16: =IF(B16<ChanceOfFlu,1,0) -> 1 | D16: =E15*C16*Flu_Mortality -> 317.0535664 | E16: =(E15-Bullets-D16)*ClutchSize -> 602.9425921 | G16: 10 | H16: 609.5820356 | I16: 1 | K16: 1000 | L16: 53 | M16: 0.053
A17: 2000 | B17: 0.5118830071 | C17: =IF(B17<ChanceOfFlu,1,0) -> 0 | D17: =E16*C17*Flu_Mortality -> 0 | E17: =(E16-Bullets-D17)*ClutchSize -> 617.9191476 | G17: 11 | H17: 104.2824964 | I17: 4 | K17: 1100 | L17: 0 | M17: 0
G18: 12 | H18: 363.679347 | I18: 2 | K18: 1200 | L18: 0 | M18: 0
G19: 13 | H19: 974.1605348 | I19: 0 | K19: 1300 | L19: 0 | M19: 0
G20: 14 | H20: 323.7005582 | I20: 2 | K20: 1400 | L20: 0 | M20: 0
G21: 15 | H21: 182.5769745 | I21: 3
G22: 16 | H22: 74.62633344 | I22: 4
G23: 17 | H23: 282.7209971 | I23: 2
G24: 18 | H24: 370.5208646 | I24: 2
G25: 19 | H25: 388.8083232 | I25: 2
G26: 20 | H26: 547.938783 | I26: 1
G27: 21 | H27: 974.1605348 | I27: 0
G28: 22 | H28: 293.8779336 | I28: 2
G29: 23 | H29: 104.2824964 | I29: 4
G30: 24 | H30: 105.8359106 | I30: 4
G31: 25 | H31: 123.1913101 | I31: 4
G32: 26 | H32: 183.7348044 | I32: 3
G33: 27 | H33: 617.9191476 | I33: 1
G34: 28 | H34: 62.0831451 | I34: 4
G35: 29 | H35: 609.5820356 | I35: 1
G36: 30 | H36: 113.278993 | I36: 4
G37: 31 | H37: 380.9431232 | I37: 2
G38: 32 | H38: 340.875009 | I38: 2
G39: 33 | H39: 547.938783 | I39: 1
G40: 34 | H40: 218.4400727 | I40: 3
G41: 35 | H41: 191.6000044 | I41: 3
G42: 36 | H42: 625.7843476 | I42: 1
G43: 37 | H43: 60.20029506 | I43: 4
G44: 38 | H44: 609.5820356 | I44: 1
G45: 39 | H45: 388.8083232 | I45: 2
G46: 40 | H46: 329.2721172 | I46: 2
G47: 41 | H47: 356.4273382 | I47: 2
G48: 42 | H48: 132.0117846 | I48: 3
G49: 43 | H49: 170.3991578 | I49: 3
G50: 44 | H50: 91.02726609 | I50: 4
G51: 45 | H51: 74.35772125 | I51: 4
G52: 46 | H52: 175.3976924 | I52: 3
G53: 47 | H53: 45.26133923 | I53: 5
G54: 48 | H54: 171.052216 | I54: 3
G55: 49 | H55: 617.9191476 | I55: 1
G56: 50 | H56: 180.7320909 | I56: 3
G57: 51 | H57: 375.198853 | I57: 2
G58: 52 | H58: 609.5820356 | I58: 1
G59: 53 | H59: 262.7462873 | I59: 2
G60: 54 | H60: 171.8567858 | I60: 3
G61: 55 | H61: 43.44110039 | I61: 5
G62: 56 | H62: 388.8083232 | I62: 2
G63: 57 | H63: 974.1605348 | I63: 0
G64: 58 | H64: 322.0201085 | I64: 2
G65: 59 | H65: 324.3895399 | I65: 2
G66: 60 | H66: 236.4592544 | I66: 3
G67: 61 | H67: 559.7651357 | I67: 1
G68: 62 | H68: 129.4536673 | I68: 4
G69: 63 | H69: 75.23626564 | I69: 4
G70: 64 | H70: 314.3329792 | I70: 2
G71: 65 | H71: 581.4474841 | I71: 1
G72: 66 | H72: 360.7728146 | I72: 2
G73: 67 | H73: 285.7295766 | I73: 2
G74: 68 | H74: 71.7935848 | I74: 4
G75: 69 | H75: 559.7651357 | I75: 1
G76: 70 | H76: 15.24916428 | I76: 5
G77: 71 | H77: 974.1605348 | I77: 0
G78: 72 | H78: 380.9431232 | I78: 2
G79: 73 | H79: 163.5576401 | I79: 3
G80: 74 | H80: 110.5986966 | I80: 4
G81: 75 | H81: 113.4892378 | I81: 4
G82: 76 | H82: 167.3983448 | I82: 3
G83: 77 | H83: 625.7843476 | I83: 1
G84: 78 | H84: 340.5918519 | I84: 2
G85: 79 | H85: 559.7651357 | I85: 1
G86: 80 | H86: 132.0117846 | I86: 3
G87: 81 | H87: 25.30633997 | I87: 5
G88: 82 | H88: 383.064053 | I88: 2
G89: 83 | H89: 370.5208646 | I89: 2
G90: 84 | H90: 338.6396962 | I90: 2
G91: 85 | H91: 547.938783 | I91: 1
G92: 86 | H92: 98.53822628 | I92: 4
G93: 87 | H93: 151.3089974 | I93: 3
G94: 88 | H94: 211.0538627 | I94: 3
G95: 89 | H95: 282.7209971 | I95: 2
G96: 90 | H96: 348.5621382 | I96: 2
G97: 91 | H97: 340.5918519 | I97: 2
G98: 92 | H98: 340.5918519 | I98: 2
G99: 93 | H99: 97.28692577 | I99: 4
G100: 94 | H100: 319.3424834 | I100: 2
G101: 95 | H101: 974.1605348 | I101: 0
G102: 96 | H102: 175.7354568 | I102: 3
G103: 97 | H103: 974.1605348 | I103: 0
G104: 98 | H104: 285.7295766 | I104: 2
G105: 99 | H105: 296.2549884 | I105: 2
G106: 100 | H106: 0 | I106: 6
G107: 101 | H107: 192.2874142 | I107: 3
G108: 102 | H108: 274.5726401 | I108: 2
G109: 103 | H109: 319.3424834 | I109: 2
G110: 104 | H110: 314.3329792 | I110: 2
G111: 105 | H111: 338.6396962 | I111: 2
G112: 106 | H112: 118.0530358 | I112: 4
G113: 107 | H113: 181.5672255 | I113: 3
G114: 108 | H114: 104.2824964 | I114: 4
G115: 109 | H115: 0 | I115: 7
G116: 110 | H116: 324.3895399 | I116: 2
G117: 111 | H117: 293.8779336 | I117: 2
G118: 112 | H118: 181.4866188 | I118: 3
G119: 113 | H119: 176.8534198 | I119: 3
G120: 114 | H120: 375.198853 | I120: 2
G121: 115 | H121: 609.5820356 | I121: 1
G122: 116 | H122: 262.7462873 | I122: 2
G123: 117 | H123: 203.1886627 | I123: 3
G124: 118 | H124: 181.4866188 | I124: 3
G125: 119 | H125: 625.7843476 | I125: 1
G126: 120 | H126: 201.8930705 | I126: 3
G127: 121 | H127: 625.7843476 | I127: 1
G128: 122 | H128: 185.1457425 | I128: 3
G129: 123 | H129: 617.9191476 | I129: 1
G130: 124 | H130: 206.6068762 | I130: 3
G131: 125 | H131: 974.1605348 | I131: 0
G132: 126 | H132: 570.9220723 | I132: 1
G133: 127 | H133: 974.1605348 | I133: 0
G134: 128 | H134: 207.9819969 | I134: 3
G135: 129 | H135: 600.7446969 | I135: 1
G136: 130 | H136: 192.2874142 | I136: 3
G137: 131 | H137: 115.4503037 | I137: 4
G138: 132 | H138: 345.4812139 | I138: 2
G139: 133 | H139: 97.94624331 | I139: 4
G140: 134 | H140: 351.9354759 | I140: 2
G141: 135 | H141: 974.1605348 | I141: 0
G142: 136 | H142: 600.7446969 | I142: 1
G143: 137 | H143: 363.679347 | I143: 2
G144: 138 | H144: 338.6396962 | I144: 2
G145: 139 | H145: 203.433201 | I145: 3
G146: 140 | H146: 331.3876875 | I146: 2
G147: 141 | H147: 262.7462873 | I147: 2
G148: 142 | H148: 196.4934906 | I148: 3
G149: 143 | H149: 192.2874142 | I149: 3
G150: 144 | H150: 208.8523238 | I150: 3
G151: 145 | H151: 84.1121879 | I151: 4
G152: 146 | H152: 570.9220723 | I152: 1
G153: 147 | H153: 274.5726401 | I153: 2
G154: 148 | H154: 617.9191476 | I154: 1
G155: 149 | H155: 0 | I155: 6
G156: 150 | H156: 163.3650868 | I156: 3
G157: 151 | H157: 388.8083232 | I157: 2
G158: 152 | H158: 609.5820356 | I158: 1
G159: 153 | H159: 123.1913101 | I159: 4
G160: 154 | H160: 204.8306026 | I160: 3
G161: 155 | H161: 383.064053 | I161: 2
G162: 156 | H162: 974.1605348 | I162: 0
G163: 157 | H163: 0 | I163: 6
G164: 158 | H164: 340.2250262 | I164: 2
G165: 159 | H165: 0 | I165: 6
G166: 160 | H166: 185.1457425 | I166: 3
G167: 161 | H167: 609.5820356 | I167: 1
G168: 162 | H168: 394.227446 | I168: 2
G169: 163 | H169: 394.227446 | I169: 2
G170: 164 | H170: 45.26133923 | I170: 5
G171: 165 | H171: 143.896995 | I171: 3
G172: 166 | H172: 591.3771179 | I172: 1
G173: 167 | H173: 37.13891252 | I173: 4
G174: 168 | H174: 581.4474841 | I174: 1
G175: 169 | H175: 146.0125653 | I175: 3
G176: 170 | H176: 52.67204493 | I176: 5
G177: 171 | H177: 388.8083232 | I177: 2
G178: 172 | H178: 213.726267 | I178: 3
G179: 173 | H179: 179.2364965 | I179: 3
G180: 174 | H180: 581.4474841 | I180: 1
G181: 175 | H181: 82.69483325 | I181: 4
G182: 176 | H182: 345.4812139 | I182: 2
G183: 177 | H183: 121.4863727 | I183: 3
G184: 178 | H184: 178.3042248 | I184: 3
G185: 179 | H185: 383.064053 | I185: 2
G186: 180 | H186: 176.8534198 | I186: 3
G187: 181 | H187: 340.875009 | I187: 2
G188: 182 | H188: 974.1605348 | I188: 0
G189: 183 | H189: 185.1457425 | I189: 3
G190: 184 | H190: 76.97672192 | I190: 4
G191: 185 | H191: 609.5820356 | I191: 1
G192: 186 | H192: 231.0401316 | I192: 3
G193: 187 | H193: 625.7843476 | I193: 1
G194: 188 | H194: 376.9751266 | I194: 2
G195: 189 | H195: 0 | I195: 7
G196: 190 | H196: 375.198853 | I196: 2
G197: 191 | H197: 179.2364965 | I197: 3
G198: 192 | H198: 351.9354759 | I198: 2
G199: 193 | H199: 200.1526142 | I199: 3
G200: 194 | H200: 219.2171295 | I200: 3
G201: 195 | H201: 974.1605348 | I201: 0
... 805 more rows

Sheet Sheet2

Sheet Sheet3
